fUSD/lending_fUSD_20250216
["ID","MTS","AMOUNT","RATE_DAILY","PERIOD"]
[353295656,1739742645186,-500.0,0.00011041,2]
[353295657,1739742645195,-500.0,0.00011041,2]
[353295658,1739742645204,-500.0,0.00011041,2]
[353295659,1739742645214,-500.0,0.00011041,2]
[353295660,1739742645223,-500.0,0.00011041,2]
[353295661,1739742645235,-500.0,0.00011041,2]
[353295662,1739742645244,-500.0,0.00011041,2]
[353295663,1739742645255,-536.14328419,0.00011041,2]
[353295664,1739742645266,-500.0,0.00011041,2]
[353295665,1739742645275,-500.0,0.00011041,2]
[353295666,1739742645285,-500.0,0.00011041,2]
[353295667,1739742645294,-500.0,0.00011041,2]
[353295668,1739742645303,-500.0,0.00011041,2]
[353295669,1739742645312,-500.0,0.00011041,2]
[353295670,1739742645321,-500.0,0.00011041,2]
[353295671,1739742645330,-500.0,0.00011041,2]
[353295672,1739742645339,-500.0,0.00011041,2]
[353295673,1739742645349,-500.0,0.00011041,2]
[353295674,1739742645358,-500.0,0.00011041,2]
[353295675,1739742645366,-500.0,0.00011041,2]
[353295676,1739742645375,-518.34757533,0.00011041,2]
[353295677,1739742645384,-500.0,0.00011041,2]
[353295678,1739742645393,-500.0,0.00011041,2]
[353295679,1739742645403,-500.0,0.00011041,2]
[353295680,1739742645411,-500.0,0.00011041,2]
[353295681,1739742645421,-500.0,0.00011041,2]
[353295682,1739742645430,-500.0,0.00011041,2]
[353295683,1739742645439,-500.0,0.00011041,2]
[353295684,1739742645448,-500.0,0.00011041,2]
[353295685,1739742645457,-500.0,0.00011041,2]
[353295686,1739742645468,-500.0,0.00011041,2]
[353295687,1739742645477,-438.75324372,0.00011041,2]
[353295688,1739742645487,-500.0,0.00011041,2]
[353295689,1739742645495,-500.0,0.00011041,2]
[353295690,1739742645505,-500.0,0.00011041,2]
[353295691,1739742645514,-500.0,0.00011041,2]
[353295692,1739742645523,-500.0,0.00011041,2]
[353295693,1739742645532,-500.0,0.00011041,2]
[353295694,1739742645542,-500.0,0.00011041,2]
[353295695,1739742645552,-500.0,0.00011041,2]
[353295696,1739742645562,-500.0,0.00011041,2]
[353295697,1739742645572,-500.0,0.00011041,2]
[353295698,1739742645582,-588.54,0.00011041,2]
[353295699,1739742645591,-500.0,0.00011041,2]
[353295700,1739742645601,-527.23,0.00011041,2]
[353295701,1739742645610,-500.0,0.00011041,2]
[353295702,1739742645620,-500.0,0.00011041,2]
[353295703,1739742645629,-500.0,0.00011041,2]
[353295704,1739742645639,-500.0,0.00011041,2]
[353295705,1739742645649,-500.0,0.00011041,2]
[353295706,1739742645658,-600.0,0.00011041,2]
[353295707,1739742645668,-500.0,0.00011041,2]
[353295708,1739742645677,-500.0,0.00011041,2]
[353295709,1739742645687,-500.0,0.00011041,2]
[353295710,1739742645697,-500.0,0.00011041,2]
[353295711,1739742645706,-773.53,0.00011041,2]
[353295712,1739742645715,-500.0,0.00011041,2]
[353295713,1739742645724,-629.01,0.00011041,2]
[353295714,1739742645733,-500.0,0.00011041,2]
[353295715,1739742645742,-500.0,0.00011041,2]
[353295716,1739742645751,-500.0,0.00011041,2]
[353295717,1739742645760,-500.0,0.00011041,2]
[353295718,1739742645769,-500.0,0.00011041,2]
[353295719,1739742645778,-545.39,0.00011041,2]
[353295720,1739742645787,-508.91262347,0.00011041,2]
[353295721,1739742645796,-581.66,0.00011041,2]
[353295722,1739742645805,-500.0,0.00011041,2]
[353295723,1739742645814,-500.0,0.00011041,2]
[353295724,1739742645823,-525.55,0.00011041,2]
[353295725,1739742645832,-500.0,0.00011041,2]
[353295726,1739742645841,-500.0,0.00011041,2]
[353295727,1739742645850,-500.0,0.00011041,2]
[353295728,1739742645859,-500.0,0.00011041,2]
[353295729,1739742645868,-500.0,0.00011041,2]
[353295730,1739742645877,-804.84,0.00011041,2]
[353295731,1739742645886,-500.0,0.00011041,2]
[353295732,1739742645896,-500.0,0.00011041,2]
[353295733,1739742645906,-500.0,0.00011041,2]
[353295734,1739742645915,-982.12,0.00011041,2]
[353295735,1739742645924,-500.0,0.00011041,2]
[353295736,1739742645934,-500.0,0.00011041,2]
[353295737,1739742645944,-500.0,0.00011041,2]
[353295738,1739742645955,-500.0,0.00011041,2]
[353295739,1739742645964,-500.0,0.00011041,2]
[353295740,1739742645974,-500.0,0.00011041,2]
[353295741,1739742645984,-500.0,0.00011041,2]
[353295742,1739742645993,-500.0,0.00011041,2]
[353295743,1739742646002,-500.0,0.00011041,2]
[353295744,1739742646011,-500.0,0.00011041,2]
[353295745,1739742646021,-565.07,0.00011041,2]
[353295746,1739742646033,-500.0,0.00011041,2]
[353295747,1739742646042,-1208.65,0.00011041,2]
[353295748,1739742646052,-500.0,0.00011041,2]
[353295749,1739742646062,-500.0,0.00011041,2]
[353295750,1739742646073,-500.0,0.00011041,2]
[353295751,1739742646082,-855.1,0.00011041,2]
[353295752,1739742646095,-597.45,0.00011041,2]
[353295753,1739742646104,-500.0,0.00011041,2]
[353295754,1739742646114,-1108.48,0.00011041,2]
[353295755,1739742646123,-570.47,0.00011041,2]
[353295757,1739742646133,-500.0,0.00011041,2]
[353295758,1739742646142,-500.0,0.00011041,2]
[353295759,1739742646152,-1106.27,0.00011041,2]
[353295760,1739742646162,-500.0,0.00011041,2]
[353295762,1739742646171,-500.0,0.00011041,2]
[353295763,1739742646180,-500.0,0.00011041,2]
[353295764,1739742646191,-500.0,0.00011041,2]
[353295765,1739742646200,-877.71,0.00011041,2]
[353295766,1739742646210,-500.0,0.00011041,2]
[353295767,1739742646219,-500.0,0.00011041,2]
[353295768,1739742646228,-726.09,0.00011041,2]
[353295769,1739742646237,-500.0,0.00011041,2]
[353295770,1739742646246,-541.85,0.00011041,2]
[353295771,1739742646255,-500.0,0.00011041,2]
[353295772,1739742646264,-1071.49,0.00011041,2]
[353295773,1739742646274,-500.0,0.00011041,2]
[353295774,1739742646283,-749.73,0.00011041,2]
[353295775,1739742646293,-767.54,0.00011041,2]
[353295777,1739742646302,-726.53,0.00011041,2]
[353295779,1739742646312,-500.0,0.00011041,2]
[353295780,1739742646322,-500.0,0.00011041,2]
[353295781,1739742646331,-500.0,0.00011041,2]
[353295782,1739742646341,-684.820222,0.00011041,2]
[353295783,1739742646350,-580.47,0.00011041,2]
[353295784,1739742646359,-587.22,0.00011041,2]
[353295785,1739742646369,-500.0,0.00011041,2]
[353295786,1739742646379,-500.0,0.00011041,2]
[353295787,1739742646389,-500.0,0.00011041,2]
[353295788,1739742646400,-500.0,0.00011041,2]
[353295789,1739742646409,-500.0,0.00011041,2]
[353295790,1739742646419,-500.0,0.00011041,2]
[353295791,1739742646428,-251.9253108,0.00011041,2]
[353295792,1739742646438,-987.579306,0.00011041,2]
[353295793,1739742646447,-648.66701512,0.00011041,2]
[353295794,1739742646456,-500.0,0.00011041,2]
[353295795,1739742646465,-500.0,0.00011041,2]
[353295796,1739742646475,-500.0,0.00011041,2]
[353295797,1739742646485,-500.0,0.00011041,2]
[353295798,1739742646494,-500.0,0.00011041,2]
[353295799,1739742646503,-500.0,0.00011041,2]
[353295800,1739742646512,-500.0,0.00011041,2]
[353295801,1739742646521,-500.0,0.00011041,2]
[353295802,1739742646531,-500.0,0.00011041,2]
[353295803,1739742646539,-500.0,0.00011041,2]
[353295804,1739742646549,-500.0,0.00011041,2]
[353295805,1739742646558,-500.0,0.00011041,2]
[353295806,1739742646567,-532.63,0.00011041,2]
[353295807,1739742646575,-518.7,0.00011041,2]
[353295808,1739742646585,-500.0,0.00011041,2]
[353295809,1739742646594,-500.0,0.00011041,2]
[353295810,1739742646603,-508.32,0.00011041,2]
[353295811,1739742646612,-500.0,0.00011041,2]
[353295812,1739742646621,-500.0,0.00011041,2]
[353295813,1739742646630,-500.0,0.00011041,2]
[353295814,1739742646640,-1320.12,0.00011041,2]
[353295815,1739742646650,-500.0,0.00011041,2]
[353295816,1739742646659,-191.782681,0.00011041,2]
[353295817,1739742646668,-500.0,0.00011041,2]
[353295818,1739742646677,-610.47,0.00011041,2]
[353295819,1739742646686,-500.0,0.00011041,2]
[353295820,1739742646695,-500.0,0.00011041,2]
[353295821,1739742646704,-500.0,0.00011041,2]
[353295822,1739742646713,-603.88,0.00011041,2]
[353295824,1739742646722,-500.0,0.00011041,2]
[353295826,1739742646732,-930.63,0.00011041,2]
[353295827,1739742646745,-836.2,0.00011041,2]
[353295828,1739742646756,-500.0,0.00011041,2]
[353295829,1739742646766,-500.0,0.00011041,2]
[353295830,1739742646775,-712.78,0.00011041,2]
[353295832,1739742646784,-500.0,0.00011041,2]
[353295834,1739742646794,-500.0,0.00011041,2]
[353295835,1739742646803,-500.0,0.00011041,2]
[353295836,1739742646814,-500.0,0.00011041,2]
[353295837,1739742646823,-500.0,0.00011041,2]
[353295838,1739742646834,-500.0,0.00011041,2]
[353295839,1739742646844,-999.98,0.00011041,2]
[353295840,1739742646854,-843.76,0.00011041,2]
[353295841,1739742646863,-863.25,0.00011041,2]
[353295842,1739742646872,-500.0,0.00011041,2]
[353295843,1739742646881,-1040.19,0.00011041,2]
[353295844,1739742646890,-500.0,0.00011041,2]
[353295845,1739742646901,-841.54,0.00011041,2]
[353295846,1739742646912,-500.0,0.00011041,2]
[353295847,1739742646923,-500.0,0.00011041,2]
[353295848,1739742646932,-565.47,0.00011041,2]
[353295849,1739742646943,-854.5,0.00011041,2]
[353295850,1739742646952,-500.0,0.00011041,2]
[353295851,1739742646962,-500.0,0.00011041,2]
[353295852,1739742646974,-500.0,0.00011041,2]
[353295853,1739742646983,-500.0,0.00011041,2]
[353295854,1739742646994,-839.28,0.00011041,2]
[353295855,1739742647006,-500.0,0.00011041,2]
[353295856,1739742647015,-500.0,0.00011041,2]
[353295857,1739742647026,-500.0,0.00011041,2]
[353295858,1739742647036,-500.0,0.00011041,2]
[353295859,1739742647046,-500.0,0.00011041,2]
[353295860,1739742647055,-1102.11,0.00011041,2]
[353295861,1739742647065,-500.0,0.00011041,2]
[353295862,1739742647074,-500.0,0.00011041,2]
[353295863,1739742647084,-1120.48,0.00011041,2]
[353295864,1739742647096,-666.2,0.00011041,2]
[353295865,1739742647104,-500.0,0.00011041,2]
[353295866,1739742647113,-500.0,0.00011041,2]
[353295867,1739742647122,-500.0,0.00011041,2]
[353295868,1739742647133,-701.22,0.00011041,2]
[353295869,1739742647143,-500.0,0.00011041,2]
[353295870,1739742647152,-500.0,0.00011041,2]
[353295871,1739742647161,-500.0,0.00011041,2]
[353295872,1739742647173,-500.0,0.00011041,2]
[353295873,1739742647183,-500.0,0.00011041,2]
[353295874,1739742647193,-500.0,0.00011041,2]
[353295875,1739742647202,-500.0,0.00011041,2]
[353295876,1739742647212,-500.0,0.00011041,2]
[353295877,1739742647222,-280.69706288,0.00011041,2]
[353295878,1739742647231,-500.0,0.00011041,2]
[353295879,1739742647241,-500.0,0.00011041,2]
[353295880,1739742647250,-500.0,0.00011041,2]
[353295881,1739742647259,-500.0,0.00011041,2]
[353295882,1739742647269,-730.12,0.00011041,2]
[353295883,1739742647278,-500.0,0.00011041,2]
[353295884,1739742647287,-500.0,0.00011041,2]
[353295885,1739742647296,-500.0,0.00011041,2]
[353295886,1739742647305,-500.0,0.00011041,2]
[353295887,1739742647314,-500.0,0.00011041,2]
[353295888,1739742647323,-500.0,0.00011041,2]
[353295889,1739742647332,-959.53,0.00011041,2]
[353295890,1739742647341,-691.18,0.00011041,2]
[353295891,1739742647350,-500.0,0.00011041,2]
[353295892,1739742647359,-500.0,0.00011041,2]
[353295893,1739742647369,-500.0,0.00011041,2]
[353295894,1739742647378,-505.00787977,0.00011041,2]
[353295895,1739742647387,-500.0,0.00011041,2]
[353295896,1739742647396,-500.0,0.00011041,2]
[353295897,1739742647406,-1279.74,0.00011041,2]
[353295898,1739742647415,-500.0,0.00011041,2]
[353295899,1739742647425,-500.0,0.00011041,2]
[353295900,1739742647434,-500.0,0.00011041,2]
[353295901,1739742647444,-500.0,0.00011041,2]
[353295902,1739742647454,-500.0,0.00011041,2]
[353295903,1739742647464,-500.0,0.00011041,2]
[353295904,1739742647473,-500.0,0.00011041,2]
[353295905,1739742647483,-1064.34,0.00011041,2]
[353295906,1739742647492,-684.81,0.00011041,2]
[353295907,1739742647501,-500.0,0.00011041,2]
[353295908,1739742647511,-500.0,0.00011041,2]
[353295909,1739742647521,-437.53940304,0.00011041,2]
[353295910,1739742647531,-500.0,0.00011041,2]
[353295911,1739742647540,-500.0,0.00011041,2]
[353295912,1739742647549,-500.0,0.00011041,2]
[353295913,1739742647558,-500.0,0.00011041,2]
[353295914,1739742647569,-500.0,0.00011041,2]
[353295915,1739742647578,-500.0,0.00011041,2]
[353295916,1739742647588,-500.0,0.00011041,2]
[353295917,1739742647597,-500.0,0.00011041,2]
[353295918,1739742647607,-948.86,0.00011041,2]
[353295919,1739742647618,-500.0,0.00011041,2]
[353295920,1739742647628,-500.0,0.00011041,2]
[353295921,1739742647638,-500.0,0.00011041,2]
[353295922,1739742647648,-500.0,0.00011041,2]
[353295923,1739742647658,-500.0,0.00011041,2]
[353295924,1739742647668,-500.0,0.00011041,2]
[353295925,1739742647677,-327.77385101,0.00011041,2]
[353295926,1739742647687,-500.0,0.00011041,2]
[353295927,1739742647696,-500.0,0.00011041,2]
[353295928,1739742647711,-500.0,0.00011041,2]
[353295929,1739742647721,-1205.36,0.00011041,2]
[353295930,1739742647730,-500.0,0.00011041,2]
[353295931,1739742647741,-500.0,0.00011041,2]
[353295932,1739742647751,-500.0,0.00011041,2]
[353295933,1739742647761,-2644.03,0.00011041,2]
[353295934,1739742647771,-845.2,0.00011041,2]
[353295935,1739742647780,-500.0,0.00011041,2]
[353295936,1739742647790,-500.0,0.00011041,2]
[353295937,1739742647800,-500.0,0.00011041,2]
[353295938,1739742647810,-1299.48,0.00011041,2]
[353295939,1739742647820,-500.0,0.00011041,2]
[353295940,1739742647830,-2569.33,0.00011041,2]
[353295941,1739742647840,-500.0,0.00011041,2]
[353295942,1739742647849,-500.0,0.00011041,2]
[353295943,1739742647859,-600.21672469,0.00011041,2]
[353295944,1739742647868,-500.0,0.00011041,2]
[353295945,1739742647878,-641.59527065,0.00011041,2]
[353295946,1739742648086,-500.0,0.00011041,2]
[353295947,1739742648097,-500.0,0.00011041,2]
[353295948,1739742648107,-500.0,0.00011041,2]
[353295949,1739742648119,-500.0,0.00011041,2]
[353295950,1739742648131,-1215.7,0.00011041,2]
[353295951,1739742648141,-500.0,0.00011041,2]
[353295952,1739742648152,-500.0,0.00011041,2]
[353295953,1739742648163,-597.66,0.00011041,2]
[353295954,1739742648173,-500.0,0.00011041,2]
[353295955,1739742648183,-500.0,0.00011041,2]
[353295956,1739742648193,-500.0,0.00011041,2]
[353295957,1739742648203,-500.0,0.00011041,2]
[353295958,1739742648212,-500.0,0.00011041,2]
[353295959,1739742648222,-500.0,0.00011041,2]
[353295960,1739742648232,-500.0,0.00011041,2]
[353295961,1739742648241,-2101.67,0.00011041,2]
[353295962,1739742648250,-500.0,0.00011041,2]
[353295963,1739742648259,-664.4,0.00011041,2]
[353295964,1739742648269,-500.0,0.00011041,2]
[353295965,1739742648279,-1077.31,0.00011041,2]
[353295966,1739742648290,-500.0,0.00011041,2]
[353295967,1739742648300,-500.0,0.00011041,2]
[353295968,1739742648310,-500.0,0.00011041,2]
[353295969,1739742648319,-935.69,0.00011041,2]
[353295970,1739742648329,-661.83,0.00011041,2]
[353295971,1739742648339,-366.26933737,0.00011041,2]
[353295972,1739742648349,-1106.58,0.00011041,2]
[353295973,1739742648359,-500.0,0.00011041,2]
[353295974,1739742648369,-500.0,0.00011041,2]
[353295975,1739742648380,-1835.67,0.00011041,2]
[353295976,1739742648390,-500.0,0.00011041,2]
[353295977,1739742648401,-500.0,0.00011041,2]
[353295978,1739742648412,-2255.62,0.00011041,2]
[353295979,1739742648421,-500.0,0.00011041,2]
[353295980,1739742648430,-500.0,0.00011041,2]
[353295981,1739742648439,-730.5,0.00011041,2]
[353295982,1739742648449,-500.0,0.00011041,2]
[353295983,1739742648459,-770.15,0.00011041,2]
[353295984,1739742648470,-500.0,0.00011041,2]
[353295985,1739742648480,-1638.39,0.00011041,2]
[353295986,1739742648491,-500.0,0.00011041,2]
[353295987,1739742648502,-500.0,0.00011041,2]
[353295988,1739742648513,-500.0,0.00011041,2]
[353295989,1739742648524,-578.74,0.00011041,2]
[353295990,1739742648535,-1003.64,0.00011041,2]
[353295991,1739742648546,-500.0,0.00011041,2]
[353295992,1739742648556,-500.0,0.00011041,2]
[353295993,1739742648565,-500.0,0.00011041,2]
[353295994,1739742648575,-791.01,0.00011041,2]
[353295995,1739742648586,-1650.35,0.00011041,2]
[353295996,1739742648596,-506.14080545,0.00011041,2]
[353295997,1739742648606,-1438.47,0.00011041,2]
[353295998,1739742648617,-500.0,0.00011041,2]
[353295999,1739742648627,-500.0,0.00011041,2]
[353296000,1739742648636,-500.0,0.00011041,2]
[353296001,1739742648646,-500.0,0.00011041,2]
[353296002,1739742648656,-500.0,0.00011041,2]
[353296003,1739742648666,-500.0,0.00011041,2]
[353296004,1739742648676,-500.0,0.00011041,2]
[353296005,1739742648685,-500.0,0.00011041,2]
[353296006,1739742648695,-500.0,0.00011041,2]
[353296007,1739742648704,-1575.58,0.00011041,2]
[353296008,1739742648715,-1536.64,0.00011041,2]
[353296009,1739742648726,-687.89,0.00011041,2]
[353296010,1739742648736,-500.0,0.00011041,2]
[353296011,1739742648745,-1036.62,0.00011041,2]
[353296012,1739742648754,-810.05,0.00011041,2]
[353296013,1739742648763,-500.0,0.00011041,2]
[353296014,1739742648773,-625.98668421,0.00011041,2]
[353296015,1739742648783,-500.0,0.00011041,2]
[353296016,1739742648794,-500.0,0.00011041,2]
[353296017,1739742648804,-1605.64,0.00011041,2]
[353296018,1739742648813,-500.0,0.00011041,2]
[353296019,1739742648822,-500.0,0.00011041,2]
[353296020,1739742648831,-1465.61,0.00011041,2]
[353296021,1739742648840,-500.0,0.00011041,2]
[353296022,1739742648849,-500.0,0.00011041,2]
[353296023,1739742648858,-500.0,0.00011041,2]
[353296024,1739742648867,-522.51,0.00011041,2]
[353296025,1739742648876,-500.0,0.00011041,2]
[353296026,1739742648885,-1869.66,0.00011041,2]
[353296027,1739742648895,-500.0,0.00011041,2]
[353296028,1739742648904,-2363.97,0.00011041,2]
[353296029,1739742648914,-946.33,0.00011041,2]
[353296030,1739742648925,-898.03,0.00011041,2]
[353296031,1739742648936,-500.0,0.00011041,2]
[353296032,1739742648946,-500.0,0.00011041,2]
[353296033,1739742648957,-5281.57,0.00011041,2]
[353296034,1739742648966,-790.18,0.00011041,2]
[353296035,1739742648977,-500.0,0.00011041,2]
[353296036,1739742648987,-1497.17,0.00011041,2]
[353296037,1739742648998,-500.0,0.00011041,2]
[353296038,1739742649009,-500.0,0.00011041,2]
[353296039,1739742649019,-955.64,0.00011041,2]
[353296040,1739742649029,-1351.49,0.00011041,2]
[353296041,1739742649039,-522.19,0.00011041,2]
[353296042,1739742649049,-1462.67,0.00011041,2]
[353296043,1739742649060,-500.0,0.00011041,2]
[353296044,1739742649071,-918.71,0.00011041,2]
[353296045,1739742649080,-1393.39,0.00011041,2]
[353296046,1739742649093,-500.0,0.00011041,2]
[353296047,1739742649103,-1445.68,0.00011041,2]
[353296048,1739742649113,-500.0,0.00011041,2]
[353296049,1739742649123,-500.0,0.00011041,2]
[353296050,1739742649134,-1262.94,0.00011041,2]
[353296051,1739742649145,-520.74321088,0.00011041,2]
[353296052,1739742649155,-1096.78,0.00011041,2]
[353296053,1739742649167,-866.87,0.00011041,2]
[353296054,1739742649178,-500.0,0.00011041,2]
[353296055,1739742649188,-921.5,0.00011041,2]
[353296056,1739742649197,-500.0,0.00011041,2]
[353296057,1739742649209,-1703.44,0.00011041,2]
[353296058,1739742649219,-817.33,0.00011041,2]
[353296059,1739742649228,-1765.29,0.00011041,2]
[353296060,1739742649239,-500.0,0.00011041,2]
[353296061,1739742649250,-563.98,0.00011041,2]
[353296062,1739742649260,-500.0,0.00011041,2]
[353296063,1739742649271,-500.0,0.00011041,2]
[353296064,1739742649281,-500.0,0.00011041,2]
[353296065,1739742649291,-410.28521457,0.00011041,2]
[353296066,1739742649301,-1077.46,0.00011041,2]
[353296067,1739742649311,-797.83,0.00011041,2]
[353296068,1739742649322,-1027.79,0.00011041,2]
[353296069,1739742649332,-500.0,0.00011041,2]
[353296070,1739742649342,-2045.9,0.00011041,2]
[353296071,1739742649352,-500.0,0.00011041,2]
[353296072,1739742649363,-562.48,0.00011041,2]
[353296073,1739742649373,-919.02,0.00011041,2]
[353296074,1739742649383,-2070.46,0.00011041,2]
[353296075,1739742649392,-500.0,0.00011041,2]
[353296076,1739742649403,-500.0,0.00011041,2]
[353296077,1739742649414,-1269.5,0.00011041,2]
[353296078,1739742649424,-1764.9,0.00011041,2]
[353296079,1739742649434,-1920.38,0.00011041,2]
[353296080,1739742649445,-500.0,0.00011041,2]
[353296081,1739742649456,-594.15,0.00011041,2]
[353296082,1739742649467,-1514.45,0.00011041,2]
[353296083,1739742649477,-500.0,0.00011041,2]
[353296084,1739742649488,-500.0,0.00011041,2]
[353296085,1739742649498,-500.0,0.00011041,2]
[353296086,1739742649509,-500.0,0.00011041,2]
[353296087,1739742649520,-3942.71,0.00011041,2]
[353296088,1739742649530,-500.0,0.00011041,2]
[353296089,1739742649541,-500.0,0.00011041,2]
[353296090,1739742649551,-500.0,0.00011041,2]
[353296091,1739742649560,-500.0,0.00011041,2]
[353296092,1739742649570,-500.0,0.00011041,2]
[353296093,1739742649580,-518.38,0.00011041,2]
[353296094,1739742649590,-500.0,0.00011041,2]
[353296095,1739742649600,-2006.59,0.00011041,2]
[353296096,1739742649609,-500.0,0.00011041,2]
[353296097,1739742649619,-500.0,0.00011041,2]
[353296098,1739742649629,-739.81,0.00011041,2]
[353296099,1739742649637,-500.0,0.00011041,2]
[353296100,1739742649646,-500.0,0.00011041,2]
[353296101,1739742649655,-1277.56,0.00011041,2]
[353296102,1739742649664,-659.07,0.00011041,2]
[353296103,1739742649673,-500.0,0.00011041,2]
[353296104,1739742649682,-500.0,0.00011041,2]
[353296105,1739742649691,-676.16,0.00011041,2]
[353296106,1739742649700,-500.0,0.00011041,2]
[353296107,1739742649709,-500.0,0.00011041,2]
[353296108,1739742649718,-616.55,0.00011041,2]
[353296109,1739742649728,-500.0,0.00011041,2]
[353296110,1739742649738,-500.0,0.00011041,2]
[353296111,1739742649747,-500.0,0.00011041,2]
[353296112,1739742649757,-500.0,0.00011041,2]
[353296113,1739742649766,-662.98,0.00011041,2]
[353296114,1739742649775,-681.63,0.00011041,2]
[353296115,1739742649785,-500.0,0.00011041,2]
[353296116,1739742649794,-768.53,0.00011041,2]
[353296117,1739742649803,-1928.42,0.00011041,2]
[353296118,1739742649813,-1472.35,0.00011041,2]
[353296119,1739742649822,-500.0,0.00011041,2]
[353296120,1739742649831,-500.0,0.00011041,2]
[353296121,1739742649840,-500.0,0.00011041,2]
[353296122,1739742649850,-500.0,0.00011041,2]
[353296123,1739742649859,-1085.08,0.00011041,2]
[353296124,1739742649869,-1097.37,0.00011041,2]
[353296125,1739742649879,-1532.75,0.00011041,2]
[353296126,1739742649888,-1575.69,0.00011041,2]
[353296127,1739742649897,-500.0,0.00011041,2]
[353296128,1739742649907,-500.0,0.00011041,2]
[353296129,1739742649917,-800.35,0.00011041,2]
[353296130,1739742649926,-1998.61,0.00011041,2]
[353296131,1739742649935,-2696.32,0.00011041,2]
[353296132,1739742649944,-500.0,0.00011041,2]
[353296133,1739742649954,-500.0,0.00011041,2]
[353296134,1739742649963,-601.4,0.00011041,2]
[353296135,1739742649972,-500.0,0.00011041,2]
[353296136,1739742649982,-846.39,0.00011041,2]
[353296137,1739742649991,-500.0,0.00011041,2]
[353296138,1739742650002,-357.7146739,0.00011041,2]
[353296139,1739742650012,-1249.29,0.00011041,2]
[353296140,1739742650023,-224.21493399,0.00011041,2]
[353296141,1739742650033,-500.0,0.00011041,2]
[353296142,1739742650043,-1062.89,0.00011041,2]
[353296143,1739742650053,-500.0,0.00011041,2]
[353296144,1739742650063,-500.0,0.00011041,2]
[353296145,1739742650073,-500.0,0.00011041,2]
[353296146,1739742650083,-500.0,0.00011041,2]
[353296147,1739742650096,-2010.66,0.00011041,2]
[353296148,1739742650105,-1292.55,0.00011041,2]
[353296149,1739742650114,-500.0,0.00011041,2]
[353296150,1739742650123,-1786.66,0.00011041,2]
[353296151,1739742650134,-500.0,0.00011041,2]
[353296152,1739742650143,-718.28,0.00011041,2]
[353296153,1739742650153,-500.0,0.00011041,2]
[353296154,1739742650162,-500.0,0.00011041,2]
[353296155,1739742650173,-500.0,0.00011041,2]
[353296156,1739742650183,-505.9,0.00011041,2]
[353296157,1739742650192,-500.0,0.00011041,2]
[353296158,1739742650202,-500.0,0.00011041,2]
[353296159,1739742650211,-2309.43,0.00011041,2]
[353296160,1739742650221,-500.0,0.00011041,2]
[353296161,1739742650230,-500.0,0.00011041,2]
[353296162,1739742650239,-500.0,0.00011041,2]
[353296163,1739742650248,-841.82,0.00011041,2]